[Event "Early-Titled-Tuesday-Blitz-January-23-2024"]
[Site "Chess.com"]
[Date "2024.01.23"]
[Round "6"]
[White "GroovyKettle"]
[Black "GMKrikor"]
[Result "1-0"]
[WhiteElo "2977"]
[BlackElo "2800"]
[TimeControl "180+1"]
[EndTime "9:06:46 PST"]
[Termination "GroovyKettle won by resignation"]

1. e4 {[%clk 0:02:18.9]} 1... e6 {[%clk 0:02:58.8]} 2. d4 {[%clk 0:02:18.2]}
2... d5 {[%clk 0:02:58.6]} 3. Nd2 {[%clk 0:02:18.8]} 3... c5 {[%clk 0:02:57.5]}
4. Ngf3 {[%clk 0:02:18.9]} 4... cxd4 {[%clk 0:02:57.3]} 5. Nxd4 {[%clk
0:02:19.8]} 5... Nf6 {[%clk 0:02:57.6]} 6. exd5 {[%clk 0:02:19]} 6... Nxd5
{[%clk 0:02:57.4]} 7. g3 {[%clk 0:02:13.3]} 7... e5 {[%clk 0:02:33.8]} 8. Bb5+
{[%clk 0:02:11.6]} 8... Bd7 {[%clk 0:02:24.8]} 9. Qe2 {[%clk 0:02:11.4]} 9...
Bxb5 {[%clk 0:01:56.3]} 10. Qxe5+ {[%clk 0:02:04.3]} 10... Be7 {[%clk
0:01:56.3]} 11. Nxb5 {[%clk 0:02:03.8]} 11... O-O {[%clk 0:01:56.4]} 12. O-O
{[%clk 0:02:01]} 12... Nc6 {[%clk 0:01:56.5]} 13. Qe4 {[%clk 0:01:55.8]} 13...
a6 {[%clk 0:01:50.7]} 14. Nd4 {[%clk 0:01:50.4]} 14... Nxd4 {[%clk 0:01:34.5]}
15. Qxd4 {[%clk 0:01:51.3]} 15... Bf6 {[%clk 0:01:16.9]} 16. Qg4 {[%clk
0:01:50.2]} 16... Rc8 {[%clk 0:01:09.2]} 17. c3 {[%clk 0:01:50.2]} 17... Re8
{[%clk 0:00:35.7]} 18. Ne4 {[%clk 0:01:48.2]} 18... Qe7 {[%clk 0:00:29.1]} 19.
Nxf6+ {[%clk 0:01:43.4]} 19... Nxf6 {[%clk 0:00:28.6]} 20. Qf3 {[%clk
0:01:41.4]} 20... Qe4 {[%clk 0:00:26.5]} 21. Qxe4 {[%clk 0:01:41.5]} 21... Rxe4
{[%clk 0:00:26]} 22. Be3 {[%clk 0:01:40.9]} 22... Nd5 {[%clk 0:00:25.5]} 23. Bd4
{[%clk 0:01:40.3]} 23... Rce8 {[%clk 0:00:25.9]} 24. f3 {[%clk 0:01:36.4]} 24...
R4e6 {[%clk 0:00:24.2]} 25. Rf2 {[%clk 0:01:33.5]} 25... Ne7 {[%clk 0:00:24.2]}
26. Rd2 {[%clk 0:01:29.6]} 26... Nc6 {[%clk 0:00:24.1]} 27. Rad1 {[%clk
0:01:25.7]} 27... Nxd4 {[%clk 0:00:22.8]} 28. Rxd4 {[%clk 0:01:25.9]} 28... g5
{[%clk 0:00:18.2]} 29. R1d2 {[%clk 0:01:24.4]} 29... Kg7 {[%clk 0:00:18.2]} 30.
g4 {[%clk 0:01:22.9]} 30... Kg6 {[%clk 0:00:17.9]} 31. Kf2 {[%clk 0:01:23]}
31... R8e7 {[%clk 0:00:18.5]} 32. Rd6 {[%clk 0:01:22.1]} 32... h5 {[%clk
0:00:16.8]} 33. h3 {[%clk 0:01:20.6]} 33... hxg4 {[%clk 0:00:17]} 34. hxg4
{[%clk 0:01:20.3]} 34... f6 {[%clk 0:00:17.3]} 35. Rxe6 {[%clk 0:01:19.7]} 35...
Rxe6 {[%clk 0:00:18.2]} 36. Rd7 {[%clk 0:01:19.9]} 36... b5 {[%clk 0:00:18.6]}
37. Rd4 {[%clk 0:01:17.5]} 37... f5 {[%clk 0:00:18]} 38. gxf5+ {[%clk
0:01:11.5]} 38... Kxf5 {[%clk 0:00:18]} 39. a4 {[%clk 0:01:12.2]} 39... Re5
{[%clk 0:00:06.8]} 40. axb5 {[%clk 0:01:10.6]} 40... axb5 {[%clk 0:00:06.6]} 41.
b4 {[%clk 0:01:08.8]} 41... Kf6 {[%clk 0:00:05.4]} 42. Rd6+ {[%clk 0:01:08.2]}
42... Kf5 {[%clk 0:00:05.7]} 43. Rc6 {[%clk 0:01:08.5]} 43... Rd5 {[%clk
0:00:05.6]} 44. Ke3 {[%clk 0:01:03.8]} 44... Ke5 {[%clk 0:00:06]} 45. Rg6 {[%clk
0:00:55.4]} 45... Kf5 {[%clk 0:00:06.3]} 46. Rb6 {[%clk 0:00:50.8]} 46... Ke5
{[%clk 0:00:06.8]} 47. Rc6 {[%clk 0:00:50.8]} 47... Kf5 {[%clk 0:00:03.8]} 48.
c4 {[%clk 0:00:43.5]} 48... bxc4 {[%clk 0:00:03.9]} 49. Rxc4 {[%clk 0:00:44.4]}
49... Rd1 {[%clk 0:00:04.3]} 50. Rc5+ {[%clk 0:00:38]} 50... Kf6 {[%clk
0:00:04.8]} 51. b5 {[%clk 0:00:36.9]} 51... Rb1 {[%clk 0:00:05.1]} 52. Kd4
{[%clk 0:00:36.3]} 52... Rb3 {[%clk 0:00:03.9]} 53. Ke4 {[%clk 0:00:35.6]} 53...
Rb4+ {[%clk 0:00:03.1]} 54. Kd5 {[%clk 0:00:35.8]} 54... Rb3 {[%clk 0:00:04]}
55. Kc6 {[%clk 0:00:32]} 55... Rxf3 {[%clk 0:00:04.1]} 56. b6 {[%clk 0:00:32.5]}
56... Rb3 {[%clk 0:00:03.6]} 57. b7 {[%clk 0:00:30.1]} 57... Rxb7 {[%clk
0:00:02.4]} 58. Kxb7 {[%clk 0:00:30.2]} 58... g4 {[%clk 0:00:03.3]} 59. Kb6
{[%clk 0:00:30.4]} 59... g3 {[%clk 0:00:02]} 60. Rc3 {[%clk 0:00:30]} 1-0

[Event "Early-Titled-Tuesday-Blitz-January-23-2024"]
[Site "Chess.com"]
[Date "2024.01.23"]
[Round "6"]
[White "JimDiGrease"]
[Black "Sychev_Klementy"]
[Result "1/2-1/2"]
[WhiteElo "2962"]
[BlackElo "2782"]
[TimeControl "180+1"]
[EndTime "9:06:48 PST"]
[Termination "Game drawn by repetition"]

1. d4 {[%clk 0:03:00.9]} 1... g6 {[%clk 0:02:37]} 2. c4 {[%clk 0:03:00.8]} 2...
Bg7 {[%clk 0:02:37.4]} 3. e4 {[%clk 0:03:01.3]} 3... e5 {[%clk 0:02:37.5]} 4.
dxe5 {[%clk 0:02:42.5]} 4... Nc6 {[%clk 0:02:36.9]} 5. Nf3 {[%clk 0:02:41.7]}
5... Nxe5 {[%clk 0:02:36.5]} 6. Nxe5 {[%clk 0:02:41.3]} 6... Bxe5 {[%clk
0:02:37.4]} 7. Be2 {[%clk 0:02:41.9]} 7... Ne7 {[%clk 0:02:16.3]} 8. O-O {[%clk
0:02:38.1]} 8... Nc6 {[%clk 0:02:16.1]} 9. Nc3 {[%clk 0:02:35.1]} 9... O-O
{[%clk 0:02:11.9]} 10. Be3 {[%clk 0:02:34.9]} 10... d6 {[%clk 0:02:10.6]} 11.
Qd2 {[%clk 0:02:34.9]} 11... f5 {[%clk 0:02:10.3]} 12. exf5 {[%clk 0:02:24.2]}
12... Bxf5 {[%clk 0:02:11.2]} 13. f4 {[%clk 0:02:20.5]} 13... Bg7 {[%clk
0:02:11.3]} 14. Bf3 {[%clk 0:02:20.5]} 14... Qd7 {[%clk 0:02:08.5]} 15. Rad1
{[%clk 0:02:14.1]} 15... Rae8 {[%clk 0:02:05]} 16. Nd5 {[%clk 0:02:11.5]} 16...
Rf7 {[%clk 0:02:02]} 17. Rfe1 {[%clk 0:02:05.1]} 17... Bg4 {[%clk 0:02:00.4]}
18. Bxg4 {[%clk 0:02:01.7]} 18... Qxg4 {[%clk 0:02:01.3]} 19. b3 {[%clk
0:02:00.7]} 19... h6 {[%clk 0:01:51.6]} 20. Bf2 {[%clk 0:01:48.4]} 20... Rxe1+
{[%clk 0:01:50.2]} 21. Rxe1 {[%clk 0:01:49.3]} 21... Kh8 {[%clk 0:01:50.7]} 22.
Qd3 {[%clk 0:01:42.4]} 22... Kh7 {[%clk 0:01:50.3]} 23. h3 {[%clk 0:01:25.2]}
23... Qd7 {[%clk 0:01:49.7]} 24. Qe4 {[%clk 0:01:23]} 24... a5 {[%clk 0:01:29]}
25. Kh2 {[%clk 0:01:17.9]} 25... Nb4 {[%clk 0:01:25]} 26. Nxb4 {[%clk
0:00:51.3]} 26... axb4 {[%clk 0:01:24.1]} 27. Qxb7 {[%clk 0:00:51.4]} 27... Rxf4
{[%clk 0:01:24.2]} 28. Bg3 {[%clk 0:00:50.2]} 28... Bc3 {[%clk 0:01:13.1]} 29.
Rd1 {[%clk 0:00:38]} 29... Rf7 {[%clk 0:01:06.1]} 30. c5 {[%clk 0:00:36.8]}
30... Qf5 {[%clk 0:00:56.7]} 31. Qd5 {[%clk 0:00:26.3]} 31... dxc5 {[%clk
0:00:51.7]} 32. Qxf5 {[%clk 0:00:19.7]} 32... gxf5 {[%clk 0:00:48.8]} 33. Bf2
{[%clk 0:00:20.2]} 33... Be5+ {[%clk 0:00:47.9]} 34. Kg1 {[%clk 0:00:16.5]}
34... Bd4 {[%clk 0:00:28]} 35. Kf1 {[%clk 0:00:11.7]} 35... Kg6 {[%clk 0:00:21]}
36. Ke2 {[%clk 0:00:09.7]} 36... Re7+ {[%clk 0:00:17.3]} 37. Kf3 {[%clk
0:00:09.6]} 37... Re6 {[%clk 0:00:15.9]} 38. Bxd4 {[%clk 0:00:06.5]} 38... Rd6
{[%clk 0:00:15.1]} 39. Ke3 {[%clk 0:00:07]} 39... cxd4+ {[%clk 0:00:06.6]} 40.
Rxd4 {[%clk 0:00:07.1]} 40... Ra6 {[%clk 0:00:05.2]} 41. Rxb4 {[%clk 0:00:04.8]}
41... Rxa2 {[%clk 0:00:05.1]} 42. Kf3 {[%clk 0:00:05.2]} 42... Rc2 {[%clk
0:00:04.3]} 43. Rb5 {[%clk 0:00:03.7]} 43... Kf6 {[%clk 0:00:03.2]} 44. Kg3
{[%clk 0:00:03.2]} 44... c6 {[%clk 0:00:03.2]} 45. Rb8 {[%clk 0:00:03.5]} 45...
Kg5 {[%clk 0:00:03.1]} 46. Rg8+ {[%clk 0:00:03.7]} 46... Kf6 {[%clk 0:00:03.7]}
47. Rb8 {[%clk 0:00:03.4]} 47... Kg5 {[%clk 0:00:03.8]} 48. Rg8+ {[%clk
0:00:03.2]} 48... Kf6 {[%clk 0:00:04.3]} 49. Rb8 {[%clk 0:00:04.1]} 1/2-1/2

[Event "Early-Titled-Tuesday-Blitz-January-23-2024"]
[Site "Chess.com"]
[Date "2024.01.23"]
[Round "6"]
[White "Al_Shima"]
[Black "tolimachess"]
[Result "1-0"]
[WhiteElo "2261"]
[BlackElo "2464"]
[TimeControl "180+1"]
[EndTime "9:06:48 PST"]
[Termination "Al_Shima won by checkmate"]

1. d4 {[%clk 0:02:55.1]} 1... c5 {[%clk 0:02:59.7]} 2. d5 {[%clk 0:02:54.7]}
2... d6 {[%clk 0:02:59.5]} 3. Nc3 {[%clk 0:02:55.1]} 3... g6 {[%clk 0:02:57.2]}
4. e4 {[%clk 0:02:55.5]} 4... Bg7 {[%clk 0:02:57.8]} 5. Bc4 {[%clk 0:02:54.6]}
5... Nf6 {[%clk 0:02:56.7]} 6. Nf3 {[%clk 0:02:54.5]} 6... O-O {[%clk
0:02:57.2]} 7. O-O {[%clk 0:02:52.6]} 7... Bd7 {[%clk 0:02:53.3]} 8. Re1 {[%clk
0:02:48.4]} 8... Na6 {[%clk 0:02:48.7]} 9. a4 {[%clk 0:02:45.5]} 9... Nc7 {[%clk
0:02:46.3]} 10. e5 {[%clk 0:02:44.7]} 10... dxe5 {[%clk 0:02:46.1]} 11. Nxe5
{[%clk 0:02:45.6]} 11... Bf5 {[%clk 0:02:40.9]} 12. Bg5 {[%clk 0:02:18.7]} 12...
h6 {[%clk 0:02:35.6]} 13. Bh4 {[%clk 0:02:15.2]} 13... Nce8 {[%clk 0:02:28.2]}
14. Qe2 {[%clk 0:01:42.4]} 14... Nd6 {[%clk 0:02:22.9]} 15. Rad1 {[%clk
0:01:32.4]} 15... a6 {[%clk 0:02:18.5]} 16. Bb3 {[%clk 0:01:23.7]} 16... Qc7
{[%clk 0:02:10.4]} 17. Bg3 {[%clk 0:01:19.7]} 17... Nh5 {[%clk 0:02:01]} 18. Nc4
{[%clk 0:00:56]} 18... Nxg3 {[%clk 0:01:59.5]} 19. hxg3 {[%clk 0:00:56.9]} 19...
Bf6 {[%clk 0:01:51.6]} 20. Qf3 {[%clk 0:00:44]} 20... h5 {[%clk 0:01:47.5]} 21.
Qf4 {[%clk 0:00:34.5]} 21... Rac8 {[%clk 0:01:34.2]} 22. Rd2 {[%clk 0:00:09.6]}
22... Kg7 {[%clk 0:01:28.9]} 23. Rde2 {[%clk 0:00:07.8]} 23... b6 {[%clk
0:01:19.4]} 24. f3 {[%clk 0:00:06.8]} 24... g5 {[%clk 0:01:15.1]} 25. Qd2 {[%clk
0:00:05.6]} 25... Bd4+ {[%clk 0:01:12.8]} 26. Kh1 {[%clk 0:00:04]} 26... Bf6
{[%clk 0:01:13.2]} 27. Ne5 {[%clk 0:00:03.8]} 27... Rh8 {[%clk 0:01:11.4]} 28.
Kg1 {[%clk 0:00:03.1]} 28... h4 {[%clk 0:01:11]} 29. gxh4 {[%clk 0:00:03.7]}
29... Rxh4 {[%clk 0:01:10.6]} 30. Nc6 {[%clk 0:00:03.4]} 30... Rch8 {[%clk
0:01:10.4]} 31. Rxe7 {[%clk 0:00:04]} 31... Bxe7 {[%clk 0:01:05.6]} 32. Rxe7
{[%clk 0:00:04.9]} 32... Rh1+ {[%clk 0:01:00.1]} 33. Kf2 {[%clk 0:00:05.2]}
33... Qc8 {[%clk 0:00:52.7]} 34. Qxg5+ {[%clk 0:00:05.4]} 34... Bg6 {[%clk
0:00:53]} 35. Qe5+ {[%clk 0:00:05.9]} 35... Kg8 {[%clk 0:00:52]} 36. Qxd6 {[%clk
0:00:06.2]} 36... Qf5 {[%clk 0:00:52]} 37. Re8+ {[%clk 0:00:05.6]} 37... Kg7
{[%clk 0:00:52.1]} 38. Rxh8 {[%clk 0:00:05.9]} 38... Rxh8 {[%clk 0:00:51.1]} 39.
Qe5+ {[%clk 0:00:06.4]} 39... Qxe5 {[%clk 0:00:51]} 40. Nxe5 {[%clk 0:00:07.3]}
40... Re8 {[%clk 0:00:50.4]} 41. f4 {[%clk 0:00:06.7]} 41... f6 {[%clk 0:00:49]}
42. Nd7 {[%clk 0:00:05.3]} 42... b5 {[%clk 0:00:46.7]} 43. axb5 {[%clk
0:00:05.5]} 43... axb5 {[%clk 0:00:47.6]} 44. Nxb5 {[%clk 0:00:06]} 44... c4
{[%clk 0:00:48.2]} 45. Bxc4 {[%clk 0:00:06.1]} 45... Bxc2 {[%clk 0:00:48.9]} 46.
Nc5 {[%clk 0:00:05]} 46... Bf5 {[%clk 0:00:47.1]} 47. d6 {[%clk 0:00:04.8]}
47... Rc8 {[%clk 0:00:46.8]} 48. b4 {[%clk 0:00:05.1]} 48... Ra8 {[%clk
0:00:41.2]} 49. Be6 {[%clk 0:00:04.6]} 49... Ra2+ {[%clk 0:00:37.8]} 50. Kg1
{[%clk 0:00:03.5]} 50... Ra1+ {[%clk 0:00:37.7]} 51. Kh2 {[%clk 0:00:03.6]}
51... Bxe6 {[%clk 0:00:35.8]} 52. Nxe6+ {[%clk 0:00:04.5]} 52... Kf7 {[%clk
0:00:36.2]} 53. d7 {[%clk 0:00:05.4]} 53... Rd1 {[%clk 0:00:35]} 54. d8=Q {[%clk
0:00:06.3]} 54... Rxd8 {[%clk 0:00:35.6]} 55. Nxd8+ {[%clk 0:00:07.2]} 55... Ke7
{[%clk 0:00:36.2]} 56. Nc6+ {[%clk 0:00:07.4]} 56... Kd7 {[%clk 0:00:36.9]} 57.
Ncd4 {[%clk 0:00:08.1]} 57... Ke7 {[%clk 0:00:36.6]} 58. Kg3 {[%clk 0:00:08.8]}
58... Kd7 {[%clk 0:00:37]} 59. Kg4 {[%clk 0:00:09.7]} 59... Ke7 {[%clk
0:00:36.4]} 60. Kf5 {[%clk 0:00:10.6]} 60... Kf7 {[%clk 0:00:36.4]} 61. g4
{[%clk 0:00:11.5]} 61... Ke7 {[%clk 0:00:37]} 62. g5 {[%clk 0:00:12]} 62... fxg5
{[%clk 0:00:37.9]} 63. fxg5 {[%clk 0:00:12.9]} 63... Kf7 {[%clk 0:00:38.6]} 64.
Nc3 {[%clk 0:00:13.8]} 64... Kg7 {[%clk 0:00:39.2]} 65. b5 {[%clk 0:00:14.7]}
65... Kf7 {[%clk 0:00:39.9]} 66. b6 {[%clk 0:00:15.6]} 66... Ke7 {[%clk
0:00:40.7]} 67. b7 {[%clk 0:00:16.4]} 67... Kd7 {[%clk 0:00:41.4]} 68. b8=Q
{[%clk 0:00:15.6]} 68... Ke7 {[%clk 0:00:42.3]} 69. Qc7+ {[%clk 0:00:16]} 69...
Ke8 {[%clk 0:00:42.9]} 70. Ke6 {[%clk 0:00:15.7]} 70... Kf8 {[%clk 0:00:43.3]}
71. Qf7# {[%clk 0:00:16.3]} 1-0

[Event "Early-Titled-Tuesday-Blitz-January-23-2024"]
[Site "Chess.com"]
[Date "2024.01.23"]
[Round "6"]
[White "monomita"]
[Black "OparinGrigoriy"]
[Result "0-1"]
[WhiteElo "2831"]
[BlackElo "3030"]
[TimeControl "180+1"]
[EndTime "9:06:50 PST"]
[Termination "OparinGrigoriy won by resignation"]

1. d4 {[%clk 0:02:59.3]} 1... Nf6 {[%clk 0:02:59.2]} 2. c4 {[%clk 0:02:59.3]}
2... e6 {[%clk 0:02:59]} 3. g3 {[%clk 0:02:56.5]} 3... c5 {[%clk 0:02:58.7]} 4.
d5 {[%clk 0:02:55.5]} 4... exd5 {[%clk 0:02:59.6]} 5. cxd5 {[%clk 0:02:55.9]}
5... g6 {[%clk 0:03:00.3]} 6. Bg2 {[%clk 0:02:55.6]} 6... d6 {[%clk 0:03:00.8]}
7. Nc3 {[%clk 0:02:55.7]} 7... Bg7 {[%clk 0:03:01.5]} 8. Nf3 {[%clk 0:02:55.8]}
8... O-O {[%clk 0:03:02.1]} 9. O-O {[%clk 0:02:56.3]} 9... Re8 {[%clk 0:03:03]}
10. Bf4 {[%clk 0:02:55.2]} 10... Bf5 {[%clk 0:02:58.1]} 11. Nh4 {[%clk
0:02:34.9]} 11... Bg4 {[%clk 0:02:58.4]} 12. h3 {[%clk 0:02:34.3]} 12... Nh5
{[%clk 0:02:58.5]} 13. Bxd6 {[%clk 0:02:06.5]} 13... Bxe2 {[%clk 0:02:49.9]} 14.
Nxe2 {[%clk 0:02:05]} 14... Qxd6 {[%clk 0:02:50.2]} 15. Nc3 {[%clk 0:02:02.3]}
15... Bxc3 {[%clk 0:02:49.6]} 16. bxc3 {[%clk 0:02:03.1]} 16... Nd7 {[%clk
0:02:49.4]} 17. Nf5 {[%clk 0:02:01.1]} 17... Qf6 {[%clk 0:02:38.1]} 18. Ne3
{[%clk 0:01:48.1]} 18... Qxc3 {[%clk 0:02:33.2]} 19. d6 {[%clk 0:01:45.3]} 19...
Rad8 {[%clk 0:02:27.5]} 20. Nd5 {[%clk 0:01:39.9]} 20... Qd4 {[%clk 0:02:17.9]}
21. Qxd4 {[%clk 0:01:37.8]} 21... cxd4 {[%clk 0:02:18.8]} 22. Rfd1 {[%clk
0:01:33]} 22... Ndf6 {[%clk 0:02:05.5]} 23. Nc7 {[%clk 0:01:14.5]} 23... Re2
{[%clk 0:01:57.1]} 24. Rxd4 {[%clk 0:01:12.5]} 24... Rb2 {[%clk 0:01:55.1]} 25.
a4 {[%clk 0:01:11.2]} 25... Ng7 {[%clk 0:01:52]} 26. Re1 {[%clk 0:01:08.8]}
26... Nf5 {[%clk 0:01:48.4]} 27. Rf4 {[%clk 0:01:04.1]} 27... Rxd6 {[%clk
0:01:47]} 28. Nb5 {[%clk 0:00:59.9]} 28... Ra6 {[%clk 0:01:21.6]} 29. Bxb7
{[%clk 0:00:58.9]} 29... Rb6 {[%clk 0:01:20.5]} 30. Bc8 {[%clk 0:00:50.2]} 30...
Nd5 {[%clk 0:01:16.1]} 31. Rc4 {[%clk 0:00:41.2]} 31... a6 {[%clk 0:01:10.5]}
32. Nc3 {[%clk 0:00:31.3]} 32... Nxc3 {[%clk 0:01:03.3]} 33. Rxc3 {[%clk
0:00:31.3]} 33... Nd4 {[%clk 0:01:03.3]} 34. a5 {[%clk 0:00:23.4]} 34... Rf6
{[%clk 0:00:59.9]} 35. Re8+ {[%clk 0:00:15.2]} 35... Kg7 {[%clk 0:00:59.7]} 36.
Rd3 {[%clk 0:00:13.5]} 36... Rbxf2 {[%clk 0:00:59.2]} 37. Rd1 {[%clk 0:00:08.9]}
37... Ne2+ {[%clk 0:00:59.1]} 38. Kh1 {[%clk 0:00:07.2]} 38... Nxg3+ {[%clk
0:00:59.6]} 39. Kg1 {[%clk 0:00:08.1]} 39... Ra2 {[%clk 0:00:54.5]} 40. Bb7
{[%clk 0:00:06.5]} 40... Rxa5 {[%clk 0:00:50.4]} 41. Rdd8 {[%clk 0:00:06]} 41...
Nf5 {[%clk 0:00:46.1]} 42. Rd1 {[%clk 0:00:03.8]} 42... Nh4 {[%clk 0:00:45.2]}
43. Re3 {[%clk 0:00:02.4]} 43... Ra2 {[%clk 0:00:44.3]} 44. Red3 {[%clk
0:00:02.7]} 44... Rb2 {[%clk 0:00:43.2]} 45. Bd5 {[%clk 0:00:03]} 45... a5
{[%clk 0:00:42.5]} 46. Bc4 {[%clk 0:00:03.2]} 46... Nf3+ {[%clk 0:00:41.2]} 47.
Rxf3 {[%clk 0:00:02]} 47... Rxf3 {[%clk 0:00:40.8]} 48. Rd7 {[%clk 0:00:02.8]}
48... a4 {[%clk 0:00:40.5]} 49. Ra7 {[%clk 0:00:03.4]} 49... a3 {[%clk 0:00:41]}
50. Bd5 {[%clk 0:00:04]} 50... Rf5 {[%clk 0:00:39.9]} 51. Bc4 {[%clk 0:00:04.5]}
51... Rc5 {[%clk 0:00:39.6]} 52. Rxf7+ {[%clk 0:00:02.3]} 52... Kh6 {[%clk
0:00:40.2]} 53. Rf4 {[%clk 0:00:03.1]} 53... Rxc4 {[%clk 0:00:40]} 54. Rxc4
{[%clk 0:00:03.7]} 54... a2 {[%clk 0:00:40.7]} 55. Rc1 {[%clk 0:00:04.4]} 55...
Rb1 {[%clk 0:00:41.2]} 56. Rxb1 {[%clk 0:00:05.2]} 56... axb1=Q+ {[%clk
0:00:42.1]} 57. Kg2 {[%clk 0:00:05.1]} 57... Qd3 {[%clk 0:00:42.8]} 58. h4
{[%clk 0:00:04.7]} 58... Kh5 {[%clk 0:00:43.7]} 59. Kh2 {[%clk 0:00:05.1]} 59...
Kxh4 {[%clk 0:00:44.3]} 0-1

[Event "Early-Titled-Tuesday-Blitz-January-23-2024"]
[Site "Chess.com"]
[Date "2024.01.23"]
[Round "6"]
[White "CarlosjPineror"]
[Black "Savagelittlemole"]
[Result "1-0"]
[WhiteElo "2608"]
[BlackElo "2453"]
[TimeControl "180+1"]
[EndTime "9:06:51 PST"]
[Termination "CarlosjPineror won on time"]

1. e4 {[%clk 0:03:00.9]} 1... c5 {[%clk 0:02:53.3]} 2. Ne2 {[%clk 0:02:58.7]}
2... Nf6 {[%clk 0:02:52.1]} 3. e5 {[%clk 0:02:57.1]} 3... Ng4 {[%clk 0:02:50.3]}
4. f4 {[%clk 0:02:54]} 4... d6 {[%clk 0:02:43.7]} 5. h3 {[%clk 0:02:51.7]} 5...
Nh6 {[%clk 0:02:39.7]} 6. exd6 {[%clk 0:02:45.2]} 6... exd6 {[%clk 0:02:36.1]}
7. g3 {[%clk 0:02:45.4]} 7... Nc6 {[%clk 0:02:29.6]} 8. Bg2 {[%clk 0:02:45.9]}
8... g6 {[%clk 0:02:27.4]} 9. O-O {[%clk 0:02:46.4]} 9... Bg7 {[%clk 0:02:27.7]}
10. d3 {[%clk 0:02:44.9]} 10... O-O {[%clk 0:02:27.5]} 11. Nbc3 {[%clk
0:02:45.5]} 11... Be6 {[%clk 0:02:25.9]} 12. g4 {[%clk 0:02:45]} 12... f5 {[%clk
0:02:23.6]} 13. g5 {[%clk 0:02:44.7]} 13... Nf7 {[%clk 0:02:22.7]} 14. Nd5
{[%clk 0:02:45.4]} 14... Ne7 {[%clk 0:02:18.4]} 15. Nec3 {[%clk 0:02:39.1]}
15... Rb8 {[%clk 0:02:01.2]} 16. Re1 {[%clk 0:02:36.7]} 16... Bxd5 {[%clk
0:02:00]} 17. Nxd5 {[%clk 0:02:36.4]} 17... Nxd5 {[%clk 0:01:59.8]} 18. Bxd5
{[%clk 0:02:35.6]} 18... Kh8 {[%clk 0:01:59.4]} 19. a4 {[%clk 0:02:19.4]} 19...
Qc7 {[%clk 0:01:55.6]} 20. c3 {[%clk 0:02:17.3]} 20... Rbe8 {[%clk 0:01:54.6]}
21. Bd2 {[%clk 0:02:14.9]} 21... Nd8 {[%clk 0:01:52.2]} 22. Qf3 {[%clk 0:02:12]}
22... b6 {[%clk 0:01:50.5]} 23. h4 {[%clk 0:02:07.5]} 23... Qd7 {[%clk
0:01:48.2]} 24. b3 {[%clk 0:02:01.4]} 24... Rxe1+ {[%clk 0:01:47.6]} 25. Rxe1
{[%clk 0:02:00.9]} 25... Re8 {[%clk 0:01:48.1]} 26. Rxe8+ {[%clk 0:01:58.3]}
26... Qxe8 {[%clk 0:01:47.6]} 27. Kf2 {[%clk 0:01:57.6]} 27... h6 {[%clk
0:01:18.9]} 28. Qe2 {[%clk 0:01:54.1]} 28... Qd7 {[%clk 0:01:08.1]} 29. Qf3
{[%clk 0:01:44.9]} 29... Kh7 {[%clk 0:01:06.3]} 30. Bc4 {[%clk 0:01:32.6]} 30...
Qc6 {[%clk 0:00:44.9]} 31. Bd5 {[%clk 0:01:27.4]} 31... Qe8 {[%clk 0:00:44]} 32.
Bc4 {[%clk 0:01:20.1]} 32... Qc6 {[%clk 0:00:34.8]} 33. Qd5 {[%clk 0:01:20.5]}
33... Qxd5 {[%clk 0:00:33.6]} 34. Bxd5 {[%clk 0:01:21.4]} 34... Bh8 {[%clk
0:00:28]} 35. a5 {[%clk 0:01:13.4]} 35... b5 {[%clk 0:00:14.9]} 36. Ke3 {[%clk
0:01:02.3]} 36... hxg5 {[%clk 0:00:14.7]} 37. hxg5 {[%clk 0:00:59.9]} 37... Kg7
{[%clk 0:00:14.9]} 38. d4 {[%clk 0:00:59.2]} 38... Kf8 {[%clk 0:00:14.1]} 39.
dxc5 {[%clk 0:00:54.5]} 39... dxc5 {[%clk 0:00:15]} 40. b4 {[%clk 0:00:47.8]}
40... cxb4 {[%clk 0:00:12.5]} 41. cxb4 {[%clk 0:00:48.4]} 41... Ke7 {[%clk
0:00:12.4]} 42. Kd3 {[%clk 0:00:48.5]} 42... Ne6 {[%clk 0:00:11.8]} 43. Be3
{[%clk 0:00:46.9]} 43... a6 {[%clk 0:00:10.7]} 44. Bb7 {[%clk 0:00:46.9]} 44...
Nc7 {[%clk 0:00:09.6]} 45. Bb6 {[%clk 0:00:47.1]} 45... Kd7 {[%clk 0:00:09.4]}
46. Bxc7 {[%clk 0:00:47.4]} 46... Kxc7 {[%clk 0:00:10.3]} 47. Bxa6 {[%clk
0:00:48]} 47... Kc6 {[%clk 0:00:09.8]} 48. Bc8 {[%clk 0:00:48.6]} 48... Bg7
{[%clk 0:00:07.7]} 49. Be6 {[%clk 0:00:48.4]} 49... Bf8 {[%clk 0:00:07.5]} 50.
Kc3 {[%clk 0:00:38.9]} 50... Bg7+ {[%clk 0:00:06.2]} 51. Kb3 {[%clk 0:00:38.4]}
51... Bd4 {[%clk 0:00:06.7]} 52. Bf7 {[%clk 0:00:38.5]} 52... Be3 {[%clk
0:00:07.2]} 53. Bxg6 {[%clk 0:00:37.3]} 53... Bxf4 {[%clk 0:00:07.8]} 54. Be8+
{[%clk 0:00:38]} 54... Kb7 {[%clk 0:00:05.7]} 55. g6 {[%clk 0:00:38.6]} 55...
Be5 {[%clk 0:00:04.8]} 56. Bxb5 {[%clk 0:00:38.1]} 56... f4 {[%clk 0:00:05.5]}
57. Be2 {[%clk 0:00:38.3]} 57... Ka7 {[%clk 0:00:03.9]} 58. b5 {[%clk
0:00:37.6]} 58... Bf6 {[%clk 0:00:03.6]} 59. Ka4 {[%clk 0:00:35.1]} 59... Bc3
{[%clk 0:00:03.3]} 60. b6+ {[%clk 0:00:34.8]} 60... Kb7 {[%clk 0:00:02.2]} 61.
Kb5 {[%clk 0:00:35.5]} 1-0